bitfinex/quotes_ETHUSD_20250611
["timestamp","ask_amount","ask_price","bid_price","bid_amount"]
[1749660502702,0.55,2865.3,2864.2,10.0]
[1749660503025,0.1426,2865.2,2864.1,10.0]
[1749660503921,0.1426,2865.2,2864.1,12.77550293]
[1749660504499,0.1426,2865.2,2864.3,10.0]
[1749660506544,0.1426,2865.2,2864.5,10.8109]
[1749660508143,0.1426,2865.2,2864.3,10.0]
[1749660508327,0.1426,2865.2,2864.2,10.8109]
[1749660510050,0.1426,2865.2,2864.1,10.0]
[1749660510363,10.0,2865.9,2864.0,2.77550293]
[1749660510364,0.1426,2864.8,2864.4,0.1744]
[1749660512610,0.1426,2864.8,2863.9,10.0]
[1749660512935,0.1744,2864.7,2864.1,0.1744]
[1749660514456,0.1426,2865.0,2864.6,0.1744]
[1749660515420,0.1426,2865.0,2864.7,10.0]
[1749660515821,0.1426,2865.0,2864.2,10.0]
[1749660516047,0.1744,2864.9,2864.4,0.1744]
[1749660516262,0.1426,2865.0,2864.5,0.1744]
[1749660516557,0.1426,2865.0,2864.7,0.1744]
[1749660517648,0.1744,2865.2,2864.7,0.1744]
[1749660517852,0.1426,2865.2,2864.6,0.7891]
[1749660518053,0.1426,2865.2,2864.9,0.1744]
[1749660519316,0.317,2865.4,2864.9,0.1744]
[1749660520264,0.1744,2865.0,2864.5,0.1744]
[1749660520936,0.1744,2865.0,2864.6,4.67]
[1749660521343,0.1426,2864.9,2864.3,4.67]
[1749660521869,0.1426,2864.9,2864.4,10.0]
[1749660522163,0.1426,2864.9,2864.6,10.0]
[1749660522776,0.1426,2864.9,2864.4,10.0]
[1749660522955,0.1426,2864.9,2864.3,4.67]
[1749660523160,0.1426,2864.9,2864.4,10.0]
[1749660523837,0.1426,2864.9,2864.0,4.67]
[1749660524187,0.1426,2864.9,2863.9,10.0]
[1749660524372,0.1426,2864.9,2864.0,11.47252732]
[1749660525857,0.1426,2864.9,2864.4,10.0]
[1749660526046,0.1426,2864.9,2864.4,14.67]
[1749660528632,0.1426,2864.9,2864.4,4.67]
[1749660529879,0.1426,2864.9,2864.0,10.0]
[1749660531510,0.1744,2864.1,2864.0,10.0]
[1749660531656,0.1744,2864.1,2863.8,10.0]
[1749660531856,0.1744,2864.1,2863.8,14.67]
[1749660532060,0.1744,2864.1,2863.9,4.67]
[1749660532261,0.1744,2863.9,2863.2,7.61990293]
[1749660532509,0.1744,2863.6,2863.2,10.1744]
[1749660532813,0.1744,2863.6,2863.0,7.44550293]
[1749660532960,0.1426,2863.5,2863.0,0.1744]
[1749660533607,0.1426,2863.0,2862.6,0.1744]
[1749660533966,0.1744,2863.0,2862.8,10.0]
[1749660534203,0.1744,2863.0,2862.7,0.7749]
[1749660534501,0.1744,2863.4,2863.0,10.0]
[1749660534800,0.317,2863.7,2863.3,10.0]
[1749660535698,0.1426,2864.4,2863.6,11.47252732]
[1749660535906,0.1744,2864.0,2863.6,11.47252732]
[1749660536727,0.1744,2864.0,2863.5,0.1744]
[1749660537204,0.1426,2863.9,2863.5,0.1744]
[1749660537924,0.1426,2863.9,2863.2,0.7717]
[1749660538134,0.1744,2863.8,2863.3,0.1744]
[1749660538971,0.1426,2863.9,2862.8,10.8316]
[1749660539177,0.1744,2863.5,2863.0,0.1744]
[1749660539501,0.1426,2863.4,2863.0,0.1744]
[1749660540891,0.1426,2863.4,2863.1,10.0]
[1749660541293,0.1744,2863.5,2863.3,11.47252732]
[1749660541916,0.317,2863.7,2863.4,10.0]
[1749660542782,0.317,2863.7,2863.2,0.1744]
[1749660543832,0.317,2863.7,2862.7,11.47252732]
[1749660543833,0.1426,2863.7,2862.8,10.0]
[1749660543997,0.1744,2863.5,2863.0,0.1744]
[1749660544573,0.1744,2863.2,2862.7,10.1744]
[1749660547626,0.1744,2862.9,2862.7,4.67]
[1749660547917,0.1744,2862.9,2862.4,4.67]
[1749660547918,0.1426,2862.8,2862.4,4.67]
[1749660548220,0.1744,2862.5,2862.4,14.67]
[1749660548386,0.1744,2862.5,2862.4,10.0]
[1749660548582,0.1744,2862.5,2862.2,4.67]
[1749660549092,0.1744,2862.5,2862.3,10.0]
[1749660549776,0.1744,2862.5,2862.3,21.47252732]
[1749660549975,0.1744,2863.0,2862.4,0.1744]
[1749660550219,0.1744,2863.0,2862.7,11.47252732]
[1749660550817,0.1744,2863.0,2862.8,0.00291197]
[1749660551319,0.1744,2863.0,2862.4,11.64692732]
[1749660552228,0.1426,2863.1,2862.3,10.0]
[1749660552379,0.1744,2862.5,2862.3,4.67]
[1749660552583,0.317,2862.5,2862.2,10.0]
[1749660552835,0.317,2862.5,2862.4,0.00291238]
[1749660553683,0.317,2862.5,2862.2,10.0]
[1749660554331,0.1744,2862.5,2862.2,10.0]
[1749660556629,0.1744,2862.5,2862.3,4.67]
[1749660558408,0.1426,2862.4,2862.2,4.67]
[1749660559322,0.1744,2862.5,2862.2,4.67]
[1749660559726,3.4916369,2864.0,2862.2,4.67]
[1749660559727,0.1426,2862.8,2862.4,11.47252732]
[1749660560021,0.317,2862.8,2862.5,4.67]
[1749660560586,0.1744,2862.7,2862.5,4.67]
[1749660564736,0.1426,2862.6,2862.5,4.67]
[1749660565041,0.1426,2862.6,2861.8,10.0]
[1749660565330,0.1426,2862.0,2861.5,4.67]
[1749660565635,0.1426,2862.0,2861.4,4.67]
[1749660565834,0.1744,2861.5,2860.9,5.4611]
[1749660566043,0.1744,2861.5,2860.9,5.6355]
[1749660566186,0.1744,2861.5,2861.0,10.0]
[1749660566388,0.317,2861.5,2860.9,5.6355]
[1749660566615,0.1744,2861.3,2860.9,4.67]
[1749660567028,0.1744,2861.3,2861.0,10.0]
[1749660568094,0.1426,2861.5,2861.0,10.0]
[1749660568255,0.1744,2861.4,2861.2,11.47252732]
[1749660568804,0.1744,2861.4,2861.3,10.0]
[1749660569545,0.1744,2861.4,2861.0,10.0]
[1749660571110,0.1426,2861.8,2861.0,10.0]
[1749660571471,0.1744,2861.2,2861.0,14.67]
[1749660572936,0.1426,2861.2,2860.8,4.67]
[1749660573109,0.1744,2861.0,2860.6,4.67]
[1749660573309,0.1744,2861.0,2860.7,10.0]
[1749660574244,0.1744,2861.0,2860.9,10.0]
[1749660574408,0.1744,2861.4,2860.9,10.1744]
[1749660574834,0.1744,2861.4,2861.1,11.47252732]
[1749660575346,0.1744,2861.4,2861.0,0.7976]
[1749660575547,0.1744,2861.4,2860.9,0.1744]
[1749660576241,0.1426,2861.7,2860.8,12.27012732]
[1749660576557,0.1744,2861.2,2860.7,10.1744]
[1749660576709,0.1426,2861.1,2860.7,10.1744]
[1749660577046,0.1426,2861.1,2860.7,10.0]
[1749660577258,0.1426,2860.7,2860.2,4.67]
[1749660577408,0.1426,2860.7,2860.0,4.67]
[1749660577613,0.1744,2860.4,2860.1,10.0]
[1749660577811,0.1744,2860.4,2860.1,4.67]
[1749660579225,0.1426,2860.7,2860.1,4.67]
[1749660579413,0.1744,2860.6,2860.3,10.0]
[1749660579944,0.1744,2861.2,2860.5,21.64692732]
[1749660580110,0.1744,2861.2,2860.6,4.67]
[1749660580311,0.1744,2860.8,2860.6,4.67]
[1749660580641,0.1744,2860.8,2860.2,0.822]
[1749660580642,0.1744,2860.8,2860.3,4.8444]
[1749660581768,0.1744,2860.8,2860.4,10.0]
[1749660582259,0.1426,2861.1,2860.4,10.0]
[1749660582455,0.1744,2861.0,2860.5,0.1744]
[1749660582640,0.1426,2861.1,2860.4,10.0]
[1749660582857,0.1744,2860.6,2860.4,10.0]
[1749660583431,0.1426,2861.1,2860.4,10.0]
[1749660583639,0.1744,2860.9,2860.6,10.0]
[1749660583820,0.1426,2861.4,2860.5,0.7981]
[1749660584165,0.1426,2861.4,2860.7,11.47252732]
[1749660584166,0.1744,2861.1,2860.7,11.47252732]
[1749660584525,0.1744,2861.1,2860.8,10.0]
[1749660585251,0.1744,2861.1,2860.7,10.0]
[1749660587354,0.1744,2861.1,2860.7,14.67]
[1749660587868,0.1744,2861.1,2860.7,26.14252732]
[1749660589023,0.1744,2861.1,2860.7,14.67]
[1749660590850,0.1744,2861.1,2860.7,26.14252732]
[1749660591568,0.1744,2861.1,2860.8,0.8138]
[1749660591742,0.1426,2861.7,2861.1,10.0]
[1749660592067,0.1744,2861.8,2861.6,10.0]
[1749660592238,0.1426,2862.3,2861.6,10.0]
[1749660592443,0.1426,2862.3,2861.9,10.0]
[1749660593529,0.1744,2862.4,2861.9,10.0]
[1749660595341,0.1426,2862.8,2862.2,10.0]
[1749660595540,0.1744,2862.6,2862.0,0.9537]
[1749660596670,0.1426,2862.8,2861.7,0.8173]
[1749660596832,0.1744,2862.4,2861.9,0.1744]
[1749660597028,0.1426,2862.3,2861.7,0.8173]
[1749660597365,0.1744,2862.2,2861.7,0.9917]
[1749660597568,0.1426,2862.3,2861.4,0.8153831]
[1749660597769,0.1426,2862.3,2861.5,11.47252732]
[1749660597970,0.317,2862.3,2861.8,11.64692732]
[1749660598273,0.1744,2862.3,2861.9,10.0]
[1749660598971,0.1445,2862.6,2861.9,10.0]
[1749660599146,0.1744,2862.5,2862.0,0.1744]
[1749660599776,0.1744,2862.5,2862.2,10.0]
[1749660600768,0.1744,2862.5,2862.0,0.1744]
[1749660600967,0.1744,2862.3,2861.8,0.1744]
[1749660601931,0.1744,2862.3,2861.9,10.0]
[1749660602160,0.1744,2862.3,2861.8,0.1744]
[1749660602346,0.3189,2862.3,2861.8,0.1744]
[1749660602679,0.1445,2862.3,2862.0,0.00291278]
[1749660602972,0.1445,2862.3,2861.1,0.8328]
[1749660603176,0.1445,2862.3,2861.2,11.47252732]
[1749660603177,0.1744,2862.0,2861.2,11.47252732]
[1749660603331,0.1744,2862.0,2861.5,0.1744]
[1749660603886,0.1744,2861.5,2861.1,0.8328]
[1749660604039,0.1744,2861.5,2861.0,0.1744]
[1749660604877,0.1744,2861.5,2861.1,10.0]
[1749660606652,0.1445,2861.4,2860.9,4.67]
[1749660606851,0.1744,2861.2,2860.8,10.0]
[1749660609096,0.1744,2861.2,2861.0,10.0]
[1749660609378,0.1445,2861.7,2861.0,10.0]
[1749660609546,0.1445,2861.9,2861.4,10.0]
[1749660609753,0.1744,2861.7,2861.4,10.0]
[1749660609952,0.1744,2861.7,2861.3,10.0]
[1749660610146,11.47252732,2863.0,2860.7,2.76730108]
[1749660610147,0.1445,2862.2,2861.7,10.0]
[1749660610347,0.1445,2863.1,2862.1,10.0]
[1749660610547,0.1445,2863.1,2862.3,11.47252732]
[1749660611587,0.1445,2863.1,2862.4,10.0]
[1749660613078,0.1445,2863.1,2862.5,0.00291228]
[1749660613290,0.1445,2863.4,2863.0,10.0]
[1749660613439,2.39530023,2865.2,2862.9,11.47252732]
[1749660613440,0.1445,2864.6,2863.2,11.47252732]
[1749660613639,0.35331161,2864.6,2863.3,10.0]
[1749660613843,0.1445,2864.5,2863.3,10.0]
[1749660614157,0.1445,2864.5,2863.3,10.8037]
[1749660614549,0.1445,2864.5,2863.6,10.0]
[1749660615500,0.1445,2864.5,2863.1,2.07501077]
[1749660615644,1.85620273,2864.4,2863.1,10.0]
[1749660615986,0.1445,2864.3,2863.1,10.0]
[1749660616137,0.55,2863.9,2862.9,2.07501077]
[1749660616341,1.71170273,2864.4,2862.2,3.45912635]
[1749660616342,0.1445,2863.8,2862.7,13.10153373]
[1749660616679,0.1445,2863.8,2862.8,10.0]
[1749660616869,0.1445,2863.8,2862.7,13.10153373]
[1749660617175,0.1445,2863.8,2863.0,12.28193373]
[1749660617353,0.1445,2863.8,2862.8,19.64895457]
[1749660618194,0.1445,2863.8,2862.8,10.0]
[1749660618351,0.1445,2863.8,2862.7,10.8196]
[1749660618550,0.1445,2863.8,2862.6,10.0]
[1749660618754,0.1445,2863.8,2862.5,12.07501077]
[1749660619092,10.0,2863.0,2862.5,21.72396534]
[1749660619309,10.0,2863.0,2862.9,9.64895457]
[1749660619496,10.0,2863.0,2862.9,24.31895457]
[1749660620455,10.0,2863.0,2862.9,24.49335457]
[1749660620651,10.0,2863.0,2862.9,14.67]
[1749660621097,10.0,2863.0,2862.9,14.8444]
[1749660621265,10.0,2863.0,2862.9,24.49335457]
[1749660621455,10.0,2863.0,2862.9,25.28555457]
[1749660621656,10.0,2863.0,2862.9,27.36056534]
[1749660622095,10.0,2863.0,2862.9,10.0]
[1749660622295,10.1744,2863.0,2862.9,10.0]
[1749660622857,10.0,2863.0,2862.9,10.0]
[1749660623657,10.0,2863.0,2862.9,14.67]
[1749660623861,10.0,2863.0,2862.9,15.666]
[1749660624799,10.0,2863.0,2862.9,14.67]
[1749660625189,10.0,2863.0,2862.9,10.0]
[1749660625190,10.1445,2863.0,2862.9,10.0]
[1749660625413,10.3189,2863.0,2862.9,10.0]
[1749660625710,10.1744,2863.0,2862.9,10.0]
[1749660625910,10.0,2863.0,2862.9,10.0]
[1749660628633,10.0,2863.0,2862.9,19.64895457]
[1749660629429,10.0,2863.0,2862.9,25.09675457]
[1749660630696,10.0,2863.0,2862.9,27.17176534]
[1749660630888,10.0,2863.0,2862.9,25.09675457]
[1749660631093,10.0,2863.0,2862.9,27.17176534]
[1749660631494,10.0,2863.0,2862.9,25.09675457]
[1749660632237,10.0,2863.0,2862.9,14.67]
[1749660636197,10.0,2863.0,2862.9,10.0]
[1749660636392,10.0,2863.0,2862.8,4.67]
[1749660638795,0.1445,2862.9,2862.8,4.67]
[1749660638995,0.1445,2862.9,2862.3,10.0]
[1749660638996,1.15895,2862.9,2862.3,10.0]
[1749660639223,0.1744,2862.5,2862.3,10.0]
[1749660639413,0.1445,2862.4,2862.2,4.67]
[1749660639619,0.3189,2862.4,2862.2,4.67]
[1749660640253,0.1744,2862.4,2862.3,10.0]
[1749660640426,1.01445,2862.9,2862.3,10.0]
[1749660640427,0.1445,2862.7,2862.3,10.0]
[1749660640753,10.0,2863.0,2862.3,10.0]
[1749660640754,10.1744,2863.0,2862.6,12.07501077]
[1749660640926,10.0,2863.0,2862.9,22.28487795]
[1749660641251,10.0,2863.0,2862.9,29.20428872]
[1749660641415,10.0,2863.0,2862.9,27.12927795]
[1749660642575,10.0,2863.0,2862.9,16.75004045]
[1749660642778,10.0,2863.0,2862.9,16.75011113]
[1749660642938,10.0,2863.0,2862.9,14.67]
[1749660643373,10.88702548,2863.0,2862.9,4.67]
[1749660645278,0.1744,2862.9,2862.6,2.08011113]
[1749660645489,0.1744,2862.9,2862.8,12.28487795]
[1749660645645,10.0,2863.0,2862.8,12.28487795]
[1749660645646,10.0,2863.0,2862.9,10.0]
[1749660646074,10.0,2863.0,2862.8,12.45927795]
[1749660646384,10.0,2863.0,2862.8,22.45927795]
[1749660647113,10.0,2863.0,2862.4,4.67]
[1749660647114,10.0,2863.0,2862.6,2.76730108]
[1749660647254,10.0,2863.0,2862.5,13.04867795]
[1749660647255,10.1744,2863.0,2862.8,2.08218128]
[1749660647640,10.1744,2863.0,2862.7,2.08218128]
[1749660648062,0.1445,2862.9,2862.7,2.08218128]
[1749660648282,0.1445,2862.9,2862.6,2.08218128]
[1749660649191,0.1445,2862.9,2862.7,2.08218128]
[1749660649885,0.1445,2862.9,2862.6,2.08218128]
[1749660650091,10.1744,2863.0,2862.7,2.08218128]
[1749660650300,10.0,2863.0,2862.7,2.08218128]
[1749660650505,10.0,2863.0,2862.8,2.08218128]
[1749660651317,10.0,2863.0,2862.9,10.0]
[1749660651995,10.0,2863.0,2862.9,10.1744]
[1749660653498,10.0,2863.0,2862.9,10.0]
[1749660653697,10.0,2863.0,2862.9,12.08106081]
[1749660653880,10.0,2863.0,2862.9,10.0]
[1749660654675,10.0,2863.0,2862.9,10.1744]
[1749660654875,10.0,2863.0,2862.9,10.17731187]
[1749660657116,10.0,2863.0,2862.9,14.84731187]
[1749660657772,10.0,2863.0,2862.9,14.8444]
[1749660657971,10.0,2863.0,2862.9,14.67]
[1749660658423,10.0,2863.0,2862.9,16.75124279]
[1749660658576,10.0,2863.0,2862.9,14.67]
[1749660658908,10.0,2863.0,2862.9,16.75092061]
[1749660659513,10.0,2863.0,2862.9,16.7512315]
[1749660659918,11.33634,2863.0,2862.9,4.67]
[1749660660414,11.33634,2863.0,2862.5,2.0812315]
[1749660660617,11.16194,2863.0,2862.4,2.0812315]
[1749660660916,11.16194,2863.0,2862.5,12.0812315]
[1749660660917,0.1744,2862.6,2862.5,12.0812315]
[1749660663284,0.3189,2862.6,2862.4,2.0812315]
[1749660663511,0.1744,2862.4,2862.2,6.7512315]
[1749660663675,0.1445,2862.6,2861.5,4.38995652]
[1749660663676,0.1445,2862.6,2862.1,2.0812315]
[1749660664083,0.1744,2862.1,2862.0,2.0812315]
[1749660664282,0.1744,2862.2,2862.0,2.0812315]
[1749660664590,0.1744,2862.2,2862.1,2.0812315]
[1749660664787,0.1445,2862.5,2862.1,2.0812315]
[1749660664974,0.1744,2862.4,2862.2,9.65385412]
[1749660665178,10.0,2863.0,2862.2,9.65385412]
[1749660665179,0.1744,2862.7,2862.3,10.0]
[1749660665378,0.1744,2862.7,2862.5,2.08124834]
[1749660665630,0.1744,2862.7,2862.6,2.08124834]
[1749660666117,0.1744,2862.7,2862.6,0.00291217]
[1749660667021,0.1744,2862.7,2862.6,2.08416051]
[1749660668025,10.0,2863.0,2862.6,10.78001217]
[1749660668233,10.1744,2863.0,2862.7,2.07952026]
[1749660668438,11.03189,2863.0,2862.6,12.08243243]
[1749660668585,0.1445,2862.9,2862.8,0.00291197]
[1749660668780,0.1445,2862.9,2862.6,10.0]
[1749660669382,0.1744,2862.6,2862.5,4.67]
[1749660670895,10.0,2863.0,2862.6,10.0]
[1749660671098,10.0,2863.0,2862.9,12.90352026]
[1749660671418,10.0,2863.0,2862.9,10.824]
[1749660671636,10.1445,2863.0,2862.9,2.07807704]
[1749660671792,11.33335,2863.0,2862.7,2.07807704]
[1749660671991,10.3189,2863.0,2862.7,2.07807704]
[1749660672309,10.1744,2863.0,2862.7,2.07807704]
[1749660672482,10.1744,2863.0,2862.8,2.07807704]
[1749660672993,10.0,2863.0,2862.8,14.36716419]
[1749660673187,10.0,2863.0,2862.9,10.9402]
[1749660675207,10.0,2863.0,2862.9,18.37750108]
[1749660675786,0.1445,2865.0,2863.0,0.7894]
[1749660676010,0.1744,2864.1,2863.7,13.07848715]
[1749660676195,0.1744,2864.1,2863.8,4.67]
[1749660677209,0.1744,2863.9,2863.8,4.67]
[1749660677611,0.1445,2864.4,2863.7,10.7894]
[1749660677814,0.1744,2864.2,2863.7,10.7894]
[1749660678193,0.1445,2864.4,2863.7,10.0]
[1749660678530,0.1744,2864.0,2863.7,10.0]
[1749660679730,0.1744,2864.4,2864.0,10.0]
[1749660680290,0.1744,2864.4,2864.2,12.28908715]
[1749660680489,0.18214911,2865.8,2864.2,12.28908715]
[1749660680490,0.1445,2866.0,2864.3,14.67]
[1749660680691,12.28908715,2866.1,2864.5,12.28908715]
[1749660680692,0.1744,2864.8,2864.5,12.28908715]
[1749660680897,0.1744,2864.8,2864.6,4.67]
[1749660681098,0.1744,2864.8,2864.5,12.28908715]
[1749660681099,0.1744,2864.8,2864.7,4.67]
[1749660681913,0.1445,2865.8,2864.7,4.67]
[1749660682207,0.1445,2865.8,2864.5,12.28908715]
[1749660682208,0.1744,2865.0,2864.8,4.67]
[1749660682402,0.1744,2865.0,2864.6,4.67]
[1749660683663,0.1744,2864.8,2864.6,4.67]
[1749660683954,0.1744,2864.8,2864.6,14.67]
[1749660683955,0.1445,2864.7,2864.6,14.67]
[1749660684156,0.1445,2864.7,2864.6,4.67]
[1749660685228,0.1445,2864.7,2863.9,8.1344]
[1749660685229,0.6945,2864.7,2863.9,0.1744]
[1749660685449,0.1744,2864.3,2863.7,14.67]
[1749660685601,0.1744,2864.3,2863.8,0.1744]
[1749660685804,0.1445,2864.7,2863.9,10.0]
[1749660686056,0.1744,2864.4,2863.9,10.0]
[1749660686771,0.1744,2864.4,2863.8,0.1744]
[1749660687258,0.1445,2864.3,2863.7,4.67]
[1749660687409,0.1744,2864.1,2863.8,10.0]
[1749660687610,0.1744,2864.1,2863.8,14.67]
[1749660689628,0.1744,2864.1,2864.0,10.0]
[1749660690646,0.1445,2864.6,2864.0,10.0]
[1749660690944,0.1744,2864.4,2864.0,10.0]
[1749660693338,0.1744,2864.4,2864.1,0.812]
[1749660693546,12.83908715,2865.2,2864.1,0.812]
[1749660693547,0.1744,2864.7,2864.1,0.812]
[1749660693717,0.1744,2864.7,2864.3,10.0]
[1749660694122,0.1445,2865.1,2864.3,26.95908715]
[1749660694322,3.6547,2866.3,2864.3,26.95908715]
[1749660694323,0.1744,2864.9,2864.5,0.812]
[1749660694559,0.1744,2864.9,2864.7,10.0]
[1749660696037,0.1744,2864.9,2864.6,4.67]
[1749660696285,0.1744,2864.9,2864.6,5.4996]
[1749660696625,0.1744,2864.9,2864.7,10.0]
[1749660696952,0.1445,2865.4,2864.7,10.0]
[1749660697169,0.1445,2866.2,2864.9,10.0]
[1749660697330,0.1445,2866.2,2865.0,4.67]
[1749660697672,12.28908715,2866.2,2865.0,4.67]
[1749660697974,0.1445,2866.0,2865.0,4.67]
[1749660698278,12.98358715,2865.9,2865.0,4.67]
[1749660698568,0.1445,2865.6,2865.0,4.67]
[1749660698777,0.1445,2865.6,2864.8,10.0]
[1749660699066,0.55,2865.5,2864.8,10.0]
[1749660699222,0.55,2865.5,2864.7,4.67]
[1749660699426,0.1445,2865.4,2864.3,10.7713]
[1749660699640,0.1445,2865.4,2864.3,23.06038715]
[1749660699840,0.1445,2865.4,2864.3,25.13544182]
[1749660701345,0.1445,2865.4,2864.4,2.07505467]
[1749660703328,0.1445,2865.4,2864.5,2.07505467]
[1749660703527,0.55,2865.3,2864.3,2.07505467]
[1749660703729,0.6945,2865.1,2864.3,2.07505467]
[1749660703961,0.1445,2864.9,2864.1,4.67]
[1749660706080,0.1744,2864.3,2864.1,4.67]
[1749660706593,0.1445,2864.8,2864.2,10.0]
[1749660706736,0.1744,2864.7,2864.2,17.54795467]
[1749660706936,0.1744,2864.7,2864.3,4.67]
[1749660707375,0.1744,2864.7,2864.3,6.74505467]
[1749660708542,0.1445,2864.8,2864.4,10.0]
[1749660709178,0.1744,2864.6,2864.4,10.0]
[1749660710378,0.1744,2864.6,2864.2,12.07505467]
[1749660710670,0.1744,2864.4,2864.2,12.07505467]
[1749660711585,0.1744,2864.6,2864.3,2.07505467]
[1749660712382,0.1445,2864.8,2864.3,2.07505467]
[1749660712682,0.1744,2864.4,2864.3,2.07505467]
[1749660713859,0.1744,2864.6,2864.3,2.07505467]
[1749660715163,0.1744,2864.6,2864.4,2.07505467]
[1749660715905,0.1445,2865.3,2864.6,10.0]
[1749660716048,0.1744,2865.0,2864.7,4.67]
[1749660716252,0.1744,2865.0,2864.7,6.74505467]
[1749660716452,0.1744,2865.0,2864.7,4.67]
[1749660716961,0.1744,2865.0,2864.8,10.0]
[1749660717164,0.1445,2865.5,2864.9,14.67]
[1749660717365,0.1744,2865.3,2865.0,10.0]
[1749660717584,0.1744,2865.3,2864.9,6.74505467]
[1749660719877,0.1744,2865.3,2864.9,17.56035467]
[1749660720078,0.1744,2865.3,2865.0,10.0]
[1749660721310,0.1744,2865.3,2864.9,7.56035467]
[1749660721475,0.1744,2865.3,2865.0,10.0]
[1749660721870,0.1744,2865.3,2865.0,12.07505467]
[1749660722086,0.1744,2865.3,2865.1,4.67]
[1749660724691,0.1445,2865.5,2865.1,4.67]
[1749660727627,0.1744,2865.3,2865.1,16.95908715]
[1749660727925,0.1744,2865.3,2865.2,10.0]
[1749660728089,0.1744,2865.8,2865.3,0.8261]
[1749660728420,12.28908715,2867.1,2865.6,0.7698]
[1749660728421,0.1744,2866.0,2865.6,0.7698]
[1749660729187,0.1744,2866.0,2865.7,0.00290902]
[1749660729820,0.1744,2866.0,2865.8,10.0]
[1749660731508,0.1744,2866.0,2865.9,0.00290882]
[1749660732020,0.1445,2868.2,2866.0,0.7501]
[1749660732255,0.83142131,2869.4,2868.2,10.7501]
[1749660732385,1.18088528,2869.6,2869.3,12.28908715]
[1749660732386,0.32531639,2869.6,2869.3,12.28908715]
[1749660732718,0.32531639,2869.6,2869.5,0.7501]
[1749660732719,0.14336581,2869.6,2869.5,0.7501]
[1749660732923,0.81804942,2869.8,2869.6,10.0]
[1749660733126,0.2205558,2871.0,2869.9,30.0]
[1749660733329,0.18148824,2871.6,2869.9,30.0]
[1749660733330,0.18148824,2871.6,2871.0,0.81]
[1749660733550,0.8163,2872.0,2870.1,0.81]
[1749660733701,0.99776891,2872.0,2870.1,0.81]
[1749660733906,0.99776891,2872.0,2870.4,12.28908715]
[1749660734452,12.28908715,2871.6,2870.1,0.81]
[1749660734654,10.0,2871.8,2869.5,1.1655918]
[1749660734655,0.8163,2870.9,2869.5,1.1655918]
[1749660734950,0.18146891,2872.0,2869.5,1.1655918]
[1749660734951,0.8163,2872.2,2870.5,0.81]
[1749660735101,0.8163,2872.2,2869.8,0.8071]
[1749660735102,12.28908715,2871.7,2869.8,0.8071]
[1749660735304,3.48118404,2872.6,2869.5,0.3555918]
[1749660735305,9.604809,2871.4,2869.5,0.3555918]
[1749660735615,0.55,2870.9,2869.6,0.29090556]
[1749660735843,0.55,2870.7,2869.6,0.29090556]
[1749660736158,10.0,2870.3,2868.7,0.8071]
[1749660736302,9.604809,2870.4,2868.7,0.8071]
[1749660736303,1.9604809,2870.2,2869.1,0.35695115]
[1749660736503,1.9604809,2870.2,2868.7,0.8071]
[1749660736504,0.55,2870.2,2868.7,0.8071]
[1749660736806,0.7943,2870.9,2868.7,11.16161129]
[1749660737038,9.604809,2870.1,2869.2,0.00290547]
[1749660737305,9.604809,2869.7,2869.2,0.00290547]
[1749660737536,0.7943,2869.9,2869.2,0.00290547]
[1749660737851,0.55,2870.3,2868.7,1.16161129]
[1749660738029,0.7943,2870.4,2868.8,10.0]
[1749660738206,0.55,2870.8,2869.1,9.604809]
[1749660738411,0.55,2870.8,2869.2,10.0]
[1749660738605,0.7943,2870.9,2868.9,0.55]
[1749660738805,1.0399109,2870.8,2869.7,3.48466987]
[1749660739006,0.3426257,2871.4,2870.0,10.55]
[1749660739206,0.8186,2871.6,2870.0,10.55]
[1749660739408,0.8186,2871.6,2869.7,0.55]
[1749660739845,0.8186,2871.6,2869.9,0.55]
[1749660740341,0.8186,2871.6,2869.7,0.55]
[1749660741256,0.8186,2871.6,2869.9,0.55]
[1749660741442,9.604809,2871.4,2869.9,10.0]
[1749660741768,10.411109,2872.2,2870.2,0.55]
[1749660742290,0.1736,2871.5,2870.9,0.1736]
[1749660742429,0.1736,2871.0,2870.5,0.1736]
[1749660742630,0.7783,2871.1,2869.8,0.8044]
[1749660742960,0.1736,2871.0,2870.5,0.1736]
[1749660746026,0.1736,2870.8,2870.3,0.1736]
[1749660747458,1.0383109,2871.5,2870.4,0.5103866]
[1749660747669,9.604809,2872.2,2870.5,0.8099]
[1749660748438,0.7746,2872.9,2870.8,10.0]
[1749660748762,9.604809,2872.4,2870.6,0.55]
[1749660749468,0.7746,2872.9,2871.1,10.55]
[1749660749671,0.7746,2872.9,2871.4,10.0]
[1749660749971,0.7746,2872.9,2871.6,0.771]
[1749660750195,0.7968,2873.4,2871.7,0.55]
[1749660750486,9.604809,2873.0,2871.6,0.771]
[1749660750694,0.9604809,2872.9,2871.6,0.771]
[1749660750835,9.604809,2873.9,2871.7,10.154809]
[1749660751032,9.604809,2873.5,2871.9,0.8019]
[1749660751236,0.9604809,2873.4,2871.9,0.8019]
[1749660751592,0.9104809,2873.4,2871.9,0.8019]
[1749660751774,0.9104809,2873.4,2872.1,10.0]